fUSD/lending_fUSD_20250426
["ID","MTS","AMOUNT","RATE_DAILY","PERIOD"]
[359060642,1745683840692,-465.94,0.00019899,2]
[359060643,1745683840703,-727.59,0.00019899,2]
[359060644,1745683840713,-400.0,0.00019899,2]
[359060645,1745683840723,-450.3073,0.000199,2]
[359060646,1745683840734,-186.70451753,0.000199,2]
[359060647,1745683840743,-225.0,0.000199,2]
[359060648,1745683840753,-319.44137543,0.000199,2]
[359060649,1745683840764,-155.36416063,0.000199,2]
[359060651,1745683840774,-368.78675394,0.000199,2]
[359060653,1745683840783,-442.59416212,0.000199,2]
[359060655,1745683840794,-500.0,0.00019926,2]
[359060657,1745683840804,-2699.0,0.00019926,2]
[359060658,1745683840814,-500.0,0.00019926,2]
[359060659,1745683840825,-500.0,0.00019926,2]
[359060660,1745683840836,-500.0,0.00019926,2]
[359060661,1745683840849,-150.0,0.00019926,2]
[359060662,1745683840859,-500.0,0.00019926,2]
[359060663,1745683840869,-150.0,0.00019926,2]
[359060664,1745683840880,-500.0,0.00019926,2]
[359060665,1745683840890,-500.0,0.00019926,2]
[359060666,1745683840900,-150.0,0.00019926,2]
[359060667,1745683840910,-150.0,0.00019926,2]
[359060668,1745683841181,-150.0,0.00019926,2]
[359060669,1745683841192,-150.0,0.00019926,2]
[359060670,1745683841202,-500.0,0.00019926,2]
[359060671,1745683841212,-500.0,0.00019954,2]
[359060672,1745683841221,-2699.0,0.00019954,2]
[359060673,1745683841231,-500.0,0.00019954,2]
[359060674,1745683841241,-500.0,0.00019954,2]
[359060675,1745683841251,-500.0,0.00019954,2]
[359060676,1745683841261,-150.0,0.00019954,2]
[359060677,1745683841270,-500.0,0.00019954,2]
[359060678,1745683841282,-150.0,0.00019954,2]
[359060679,1745683841292,-500.0,0.00019954,2]
[359060680,1745683841302,-500.0,0.00019954,2]
[359060681,1745683841313,-277.27421446,0.00019954,2]
[359060682,1745683841322,-233.51134533,0.00019954,2]
[359060683,1745683841333,-240.0110271,0.00019954,2]
[359060684,1745683841343,-154.28711873,0.00019954,2]
[359060685,1745683841353,-500.0,0.00019954,2]
[359060686,1745683841362,-267.99,0.00019956,2]
[359060687,1745683841372,-267.99,0.00019956,2]
[359060688,1745683841382,-400.0,0.00019966,2]
[359060689,1745683841391,-440.36327815,0.00019966,2]
[359060690,1745683841401,-400.0,0.00019966,2]
[359060691,1745683841411,-400.0,0.00019966,2]
[359060692,1745683841420,-400.0,0.00019966,2]
[359060693,1745683841431,-400.0,0.00019966,2]
[359060694,1745683841440,-400.0,0.00019966,2]
[359060695,1745683841450,-400.0,0.00019966,2]
[359060696,1745683841461,-400.0,0.00019966,2]
[359060697,1745683841472,-965.09,0.00019966,2]
[359060698,1745683841483,-400.0,0.00019966,2]
[359060699,1745683841494,-400.0,0.00019966,2]
[359060700,1745683841504,-400.0,0.00019966,2]
[359060701,1745683841514,-689.65,0.00019966,2]
[359060702,1745683841525,-638.48,0.00019966,2]
[359060703,1745683841535,-400.0,0.00019966,2]
[359060704,1745683841546,-400.0,0.00019966,2]
[359060705,1745683841556,-400.0,0.00019966,2]
[359060706,1745683841566,-400.0,0.00019966,2]
[359060707,1745683841577,-487.67,0.00019966,2]
[359060708,1745683841589,-400.0,0.00019966,2]
[359060709,1745683841600,-400.0,0.00019966,2]
[359060710,1745683841611,-400.0,0.00019966,2]
[359060711,1745683841622,-538.48345848,0.00019966,2]
[359060712,1745683841633,-235.23510978,0.00019966,2]
[359060713,1745683841645,-825.61,0.00019966,2]
[359060714,1745683841655,-400.0,0.00019966,2]
[359060715,1745683841665,-400.0,0.00019966,2]
[359060716,1745683841675,-400.0,0.00019966,2]
[359060717,1745683841687,-400.0,0.00019966,2]
[359060718,1745683841698,-400.0,0.00019966,2]
[359060719,1745683841707,-200.0,0.00019966,2]
[359060720,1745683841717,-400.0,0.00019966,2]
[359060721,1745683841728,-1558.84,0.00019966,2]
[359060722,1745683841739,-205.76331068,0.00019966,2]
[359060723,1745683841749,-400.0,0.00019966,2]
[359060724,1745683841762,-425.61,0.00019966,2]
[359060725,1745683841773,-400.0,0.00019966,2]
[359060726,1745683841784,-400.0,0.00019966,2]
[359060727,1745683841794,-400.0,0.00019966,2]
[359060728,1745683841805,-616.09,0.00019966,2]
[359060729,1745683841816,-785.17,0.00019966,2]
[359060730,1745683841827,-400.0,0.00019966,2]
[359060731,1745683841836,-400.0,0.00019966,2]
[359060732,1745683841846,-400.0,0.00019966,2]
[359060733,1745683841858,-493.73,0.00019966,2]
[359060734,1745683841870,-205.26182387,0.00019966,2]
[359060735,1745683841880,-400.0,0.00019966,2]
[359060736,1745683841890,-400.0,0.00019966,2]
[359060737,1745683841899,-738.12,0.00019966,2]
[359060738,1745683841909,-662.23,0.00019966,2]
[359060739,1745683841919,-401.17,0.00019966,2]
[359060740,1745683841928,-200.0,0.00019966,2]
[359060741,1745683841938,-708.41,0.00019966,2]
[359060742,1745683841947,-400.0,0.00019966,2]
[359060743,1745683841958,-200.0,0.00019966,2]
[359060744,1745683841968,-250.0,0.00019966,2]
[359060745,1745683841979,-689.29,0.00019966,2]
[359060746,1745683841989,-200.0,0.00019966,2]
[359060747,1745683841999,-529.37,0.00019966,2]
[359060748,1745683842009,-665.45,0.00019966,2]
[359060749,1745683842018,-755.18,0.00019966,2]
[359060750,1745683842028,-400.0,0.00019966,2]
[359060751,1745683842038,-400.0,0.00019966,2]
[359060752,1745683842049,-253.92943443,0.00019966,2]
[359060753,1745683842058,-400.0,0.00019966,2]
[359060754,1745683842068,-624.07,0.00019966,2]
[359060755,1745683842079,-455.11899499,0.00019966,2]
[359060756,1745683842088,-400.0,0.00019966,2]
[359060757,1745683842098,-462.31,0.00019966,2]
[359060758,1745683842107,-200.0,0.00019966,2]
[359060759,1745683842118,-288.02887462,0.00019966,2]
[359060760,1745683842128,-804.26,0.00019966,2]
[359060761,1745683842139,-400.0,0.00019966,2]
[359060762,1745683842149,-200.0,0.00019966,2]
[359060763,1745683842158,-400.0,0.00019966,2]
[359060764,1745683842168,-400.0,0.00019966,2]
[359060765,1745683842177,-416.68,0.00019966,2]
[359060766,1745683842187,-400.0,0.00019966,2]
[359060767,1745683842196,-489.17,0.00019966,2]
[359060768,1745683842206,-292.2041812,0.00019966,2]
[359060769,1745683842215,-493.67150404,0.00019966,2]
[359060770,1745683842224,-572.18,0.00019966,2]
[359060771,1745683842236,-632.49,0.00019966,2]
[359060772,1745683842245,-200.0,0.00019966,2]
[359060773,1745683842254,-511.05,0.00019966,2]
[359060774,1745683842264,-500.0,0.00019966,2]
[359060775,1745683842274,-1261.43,0.00019966,2]
[359060776,1745683842283,-400.0,0.00019966,2]
[359060777,1745683842293,-500.0,0.00019966,2]
[359060778,1745683842303,-400.0,0.00019966,2]
[359060779,1745683842312,-400.0,0.00019966,2]
[359060780,1745683842322,-400.0,0.00019966,2]
[359060781,1745683842331,-657.97,0.00019966,2]
[359060782,1745683842342,-400.0,0.00019966,2]
[359060783,1745683842351,-400.0,0.00019966,2]
[359060784,1745683842362,-400.0,0.00019966,2]
[359060785,1745683842371,-494.76,0.00019966,2]
[359060786,1745683842381,-400.0,0.00019966,2]
[359060787,1745683842390,-400.0,0.00019966,2]
[359060788,1745683842399,-400.0,0.00019966,2]
[359060789,1745683842409,-1070.08,0.00019966,2]
[359060790,1745683842418,-453.88,0.00019966,2]
[359060791,1745683842428,-400.0,0.00019966,2]
[359060792,1745683842438,-500.0,0.00019966,2]
[359060793,1745683842447,-400.0,0.00019966,2]
[359060794,1745683842456,-400.0,0.00019966,2]
[359060795,1745683842466,-600.61,0.00019966,2]
[359060796,1745683842476,-400.0,0.00019966,2]
[359060797,1745683842487,-432.45,0.00019966,2]
[359060798,1745683842496,-400.0,0.00019966,2]
[359060799,1745683842505,-536.78,0.00019966,2]
[359060800,1745683842515,-183.29250345,0.00019966,2]
[359060801,1745683842524,-400.0,0.00019966,2]
[359060802,1745683842534,-400.0,0.00019966,2]
[359060803,1745683842543,-400.0,0.00019966,2]
[359060804,1745683842553,-400.0,0.00019966,2]
[359060805,1745683842562,-400.0,0.00019966,2]
[359060806,1745683842572,-400.0,0.00019966,2]
[359060807,1745683842581,-400.0,0.00019966,2]
[359060808,1745683842591,-859.56,0.00019966,2]
[359060809,1745683842600,-400.0,0.00019966,2]
[359060810,1745683842610,-379.52554957,0.00019966,2]
[359060811,1745683842620,-400.0,0.00019966,2]
[359060812,1745683842630,-400.0,0.00019966,2]
[359060813,1745683842639,-400.0,0.00019966,2]
[359060814,1745683842648,-400.0,0.00019966,2]
[359060815,1745683842658,-400.0,0.00019966,2]
[359060816,1745683842667,-980.72,0.00019966,2]
[359060817,1745683842677,-980.72,0.00019966,2]
[359060818,1745683842690,-400.0,0.00019966,2]
[359060819,1745683842700,-400.0,0.00019966,2]
[359060820,1745683842709,-400.0,0.00019966,2]
[359060821,1745683842719,-400.0,0.00019966,2]
[359060822,1745683842730,-400.0,0.00019966,2]
[359060823,1745683842741,-386.68122914,0.00019966,2]
[359060824,1745683842752,-970.57,0.00019966,2]
[359060825,1745683842763,-459.46,0.00019966,2]
[359060826,1745683842772,-400.0,0.00019966,2]
[359060827,1745683842782,-400.0,0.00019966,2]
[359060828,1745683842792,-400.0,0.00019966,2]
[359060829,1745683842802,-400.0,0.00019966,2]
[359060830,1745683842812,-613.78,0.00019966,2]
[359060831,1745683842822,-400.0,0.00019966,2]
[359060832,1745683842832,-400.0,0.00019966,2]
[359060833,1745683842842,-182.67810974,0.00019966,2]
[359060834,1745683842852,-400.0,0.00019966,2]
[359060835,1745683842862,-400.0,0.00019966,2]
[359060836,1745683842872,-252.92410578,0.00019966,2]
[359060837,1745683842882,-400.0,0.00019966,2]
[359060838,1745683842891,-486.67,0.00019966,2]
[359060839,1745683842902,-300.0,0.00019966,2]
[359060840,1745683842912,-965.56,0.00019966,2]
[359060841,1745683842921,-400.0,0.00019966,2]
[359060842,1745683842931,-757.15,0.00019966,2]
[359060843,1745683842941,-728.93,0.00019966,2]
[359060844,1745683842951,-400.0,0.00019966,2]
[359060845,1745683842961,-576.63,0.00019966,2]
[359060846,1745683842971,-703.34,0.00019966,2]
[359060847,1745683842980,-600.25,0.00019966,2]
[359060848,1745683842990,-400.0,0.00019966,2]
[359060849,1745683843000,-412.86,0.00019966,2]
[359060850,1745683843010,-400.0,0.00019966,2]
[359060851,1745683843020,-670.93,0.00019966,2]
[359060852,1745683843029,-400.0,0.00019966,2]
[359060853,1745683843039,-481.15,0.00019966,2]
[359060854,1745683843050,-400.0,0.00019966,2]
[359060855,1745683843060,-523.93,0.00019966,2]
[359060856,1745683843069,-400.0,0.00019966,2]
[359060857,1745683843079,-400.0,0.00019966,2]
[359060858,1745683843089,-412.04,0.00019966,2]
[359060859,1745683843099,-630.31,0.00019966,2]
[359060860,1745683843109,-400.0,0.00019966,2]
[359060861,1745683843118,-400.0,0.00019966,2]
[359060862,1745683843128,-200.0,0.00019966,2]
[359060863,1745683843137,-917.4,0.00019966,2]
[359060864,1745683843146,-498.67,0.00019966,2]
[359060865,1745683843156,-400.0,0.00019966,2]
[359060866,1745683843166,-400.0,0.00019966,2]
[359060867,1745683843176,-310.26577707,0.00019966,2]
[359060868,1745683843186,-400.0,0.00019966,2]
[359060869,1745683843196,-400.0,0.00019966,2]
[359060870,1745683843206,-773.2,0.00019966,2]
[359060871,1745683843216,-400.0,0.00019966,2]
[359060872,1745683843226,-703.28,0.00019966,2]
[359060873,1745683843236,-583.02,0.00019966,2]
[359060874,1745683843245,-400.0,0.00019966,2]
[359060875,1745683843255,-625.73,0.00019966,2]
[359060877,1745683843264,-400.0,0.00019966,2]
[359060879,1745683843274,-400.0,0.00019966,2]
[359060880,1745683843285,-400.0,0.00019966,2]
[359060881,1745683843295,-542.75,0.00019966,2]
[359060882,1745683843305,-400.0,0.00019966,2]
[359060883,1745683843315,-708.08,0.00019966,2]
[359060884,1745683843326,-400.0,0.00019966,2]
[359060885,1745683843337,-450.9,0.00019966,2]
[359060886,1745683843348,-400.0,0.00019966,2]
[359060887,1745683843359,-400.0,0.00019966,2]
[359060888,1745683843369,-400.0,0.00019966,2]
[359060889,1745683843380,-400.0,0.00019966,2]
[359060890,1745683843389,-400.0,0.00019966,2]
[359060891,1745683843399,-400.0,0.00019966,2]
[359060892,1745683843411,-716.52,0.00019966,2]
[359060893,1745683843422,-400.0,0.00019966,2]
[359060894,1745683843433,-400.0,0.00019966,2]
[359060895,1745683843444,-801.36,0.00019966,2]
[359060896,1745683843454,-400.0,0.00019966,2]
[359060897,1745683843463,-400.0,0.00019966,2]
[359060898,1745683843472,-575.69,0.00019966,2]
[359060899,1745683843483,-414.32753968,0.00019966,2]
[359060900,1745683843492,-400.0,0.00019966,2]
[359060901,1745683843501,-400.0,0.00019966,2]
[359060902,1745683843511,-400.0,0.00019966,2]
[359060903,1745683843521,-600.88,0.00019966,2]
[359060904,1745683843531,-400.0,0.00019966,2]
[359060905,1745683843541,-400.0,0.00019966,2]
[359060906,1745683843551,-400.0,0.00019966,2]
[359060907,1745683843561,-400.0,0.00019966,2]
[359060908,1745683843570,-626.58,0.00019966,2]
[359060909,1745683843580,-599.35,0.00019966,2]
[359060910,1745683843589,-400.0,0.00019966,2]
[359060911,1745683843601,-400.0,0.00019966,2]
[359060912,1745683843611,-567.31,0.00019966,2]
[359060913,1745683843621,-590.65,0.00019966,2]
[359060914,1745683843630,-400.0,0.00019966,2]
[359060915,1745683843640,-400.0,0.00019966,2]
[359060916,1745683843650,-511.79,0.00019966,2]
[359060917,1745683843659,-400.0,0.00019966,2]
[359060918,1745683843669,-400.0,0.00019966,2]
[359060919,1745683843679,-5217.9,0.00019966,2]
[359060920,1745683843692,-397.05282547,0.00019966,2]
[359060921,1745683843702,-400.0,0.00019966,2]
[359060922,1745683843711,-512.71,0.00019966,2]
[359060923,1745683843720,-400.0,0.00019966,2]
[359060924,1745683843730,-471.93,0.00019966,2]
[359060925,1745683843740,-400.0,0.00019966,2]
[359060926,1745683843750,-400.0,0.00019966,2]
[359060927,1745683843760,-567.07,0.00019966,2]
[359060928,1745683843770,-400.0,0.00019966,2]
[359060929,1745683843779,-859.18,0.00019966,2]
[359060930,1745683843788,-400.0,0.00019966,2]
[359060931,1745683843799,-730.5,0.00019966,2]
[359060932,1745683843808,-400.0,0.00019966,2]
[359060933,1745683843818,-737.11,0.00019966,2]
[359060934,1745683843827,-1208.69,0.00019966,2]
[359060935,1745683843837,-400.0,0.00019966,2]
[359060936,1745683843847,-791.09,0.00019966,2]
[359060937,1745683843857,-540.19,0.00019966,2]
[359060938,1745683843867,-400.0,0.00019966,2]
[359060939,1745683843877,-400.0,0.00019966,2]
[359060940,1745683843887,-556.42,0.00019966,2]
[359060941,1745683843896,-400.0,0.00019966,2]
[359060942,1745683843907,-400.0,0.00019966,2]
[359060943,1745683843916,-400.0,0.00019966,2]
[359060944,1745683843926,-400.0,0.00019966,2]
[359060945,1745683843936,-898.25,0.00019966,2]
[359060946,1745683843945,-490.2,0.00019966,2]
[359060947,1745683843955,-767.41,0.00019966,2]
[359060948,1745683843966,-400.0,0.00019966,2]
[359060949,1745683843976,-400.0,0.00019966,2]
[359060950,1745683843987,-400.0,0.00019966,2]
[359060951,1745683843997,-400.0,0.00019966,2]
[359060952,1745683844007,-777.12,0.00019966,2]
[359060953,1745683844017,-610.7,0.00019966,2]
[359060954,1745683844027,-401.64,0.00019966,2]
[359060955,1745683844037,-400.0,0.00019966,2]
[359060956,1745683844047,-400.0,0.00019966,2]
[359060957,1745683844057,-1269.62,0.00019966,2]
[359060958,1745683844066,-1008.89,0.00019966,2]
[359060959,1745683844076,-530.99,0.00019966,2]
[359060960,1745683844087,-1091.65,0.00019966,2]
[359060961,1745683844097,-424.83,0.00019966,2]
[359060962,1745683844107,-641.44,0.00019966,2]
[359060963,1745683844116,-500.0,0.00019966,2]
[359060964,1745683844126,-437.98246931,0.00019966,2]
[359060965,1745683844136,-427.06,0.00019966,2]
[359060966,1745683844146,-767.55,0.00019966,2]
[359060967,1745683844155,-400.0,0.00019966,2]
[359060968,1745683844165,-818.18,0.00019966,2]
[359060969,1745683844174,-443.62640003,0.00019966,2]
[359060970,1745683844184,-400.0,0.00019966,2]
[359060971,1745683844194,-400.0,0.00019966,2]
[359060972,1745683844204,-523.63,0.00019966,2]
[359060973,1745683844214,-731.11,0.00019966,2]
[359060974,1745683844223,-400.0,0.00019966,2]
[359060975,1745683844233,-400.0,0.00019966,2]
[359060976,1745683844242,-557.44,0.00019966,2]
[359060977,1745683844251,-400.0,0.00019966,2]
[359060978,1745683844261,-867.35,0.00019966,2]
[359060979,1745683844270,-400.0,0.00019966,2]
[359060980,1745683844279,-400.0,0.00019966,2]
[359060981,1745683844289,-400.0,0.00019966,2]
[359060982,1745683844299,-500.0,0.00019966,2]
[359060983,1745683844308,-635.57,0.00019966,2]
[359060984,1745683844317,-400.0,0.00019966,2]
[359060985,1745683844327,-1965.3,0.00019966,2]
[359060986,1745683844337,-400.0,0.00019966,2]
[359060987,1745683844346,-780.33,0.00019966,2]
[359060988,1745683844356,-499.51,0.00019966,2]
[359060989,1745683844365,-400.0,0.00019966,2]
[359060990,1745683844374,-200.0,0.00019966,2]
[359060991,1745683844383,-546.83,0.00019966,2]
[359060992,1745683844393,-400.0,0.00019966,2]
[359060993,1745683844402,-442.16,0.00019966,2]
[359060994,1745683844412,-400.0,0.00019966,2]
[359060995,1745683844422,-530.37,0.00019966,2]
[359060996,1745683844432,-478.14,0.00019966,2]
[359060997,1745683844443,-400.0,0.00019966,2]
[359060998,1745683844452,-400.0,0.00019966,2]
[359060999,1745683844468,-400.0,0.00019966,2]
[359061000,1745683844477,-888.1,0.00019966,2]
[359061001,1745683844489,-400.0,0.00019966,2]
[359061002,1745683844498,-400.0,0.00019966,2]
[359061003,1745683844510,-946.81,0.00019966,2]
[359061004,1745683844520,-200.0,0.00019966,2]
[359061005,1745683844529,-400.0,0.00019966,2]
[359061006,1745683844540,-400.0,0.00019966,2]
[359061007,1745683844549,-3869.93,0.00019966,2]
[359061008,1745683844560,-400.0,0.00019967,2]
[359061009,1745683844570,-400.0,0.00019967,2]
[359061010,1745683844579,-400.0,0.00019967,2]
[359061011,1745683844589,-400.0,0.00019967,2]
[359061012,1745683844599,-196.47492964,0.00019967,2]
[359061013,1745683844608,-400.0,0.00019967,2]
[359061014,1745683844618,-400.0,0.00019967,2]
[359061015,1745683844628,-791.05,0.00019967,2]
[359061016,1745683844637,-411.86,0.00019967,2]
[359061017,1745683844648,-386.85366755,0.00019967,2]
[359061018,1745683844657,-400.0,0.00019967,2]
[359061019,1745683844667,-400.0,0.00019967,2]
[359061020,1745683844677,-400.0,0.00019967,2]
[359061021,1745683844689,-400.0,0.00019967,2]
[359061022,1745683844698,-400.0,0.00019967,2]
[359061023,1745683844707,-400.0,0.00019967,2]
[359061024,1745683844717,-453.97,0.00019967,2]
[359061025,1745683844727,-400.0,0.00019967,2]
[359061026,1745683844737,-400.0,0.00019967,2]
[359061027,1745683844746,-400.0,0.00019967,2]
[359061028,1745683844756,-651.21,0.00019967,2]
[359061029,1745683844768,-400.0,0.00019967,2]
[359061030,1745683844778,-883.32,0.00019967,2]
[359061031,1745683844787,-400.0,0.00019967,2]
[359061032,1745683844797,-400.0,0.00019967,2]
[359061033,1745683844807,-400.0,0.00019967,2]
[359061034,1745683844817,-400.0,0.00019967,2]
[359061035,1745683844827,-469.08,0.00019967,2]
[359061036,1745683844836,-400.0,0.00019967,2]
[359061037,1745683844846,-400.0,0.00019967,2]
[359061038,1745683844856,-400.0,0.00019967,2]
[359061039,1745683844866,-400.0,0.00019967,2]
[359061040,1745683844876,-459.54,0.00019967,2]
[359061041,1745683844887,-500.0,0.00019967,2]
[359061042,1745683844898,-400.0,0.00019967,2]
[359061043,1745683844908,-500.05,0.00019967,2]
[359061044,1745683844918,-400.0,0.00019967,2]
[359061045,1745683844928,-400.0,0.00019967,2]
[359061046,1745683844938,-400.0,0.00019967,2]
[359061047,1745683844948,-754.33,0.00019967,2]
[359061048,1745683844958,-400.0,0.00019967,2]
[359061049,1745683844968,-400.0,0.00019967,2]
[359061050,1745683844978,-400.0,0.00019967,2]
[359061051,1745683844989,-400.0,0.00019967,2]
[359061052,1745683844999,-400.0,0.00019967,2]
[359061053,1745683845009,-400.0,0.00019967,2]
[359061054,1745683845019,-681.47,0.00019967,2]
[359061055,1745683845029,-896.19,0.00019967,2]
[359061056,1745683845039,-535.04,0.00019967,2]
[359061057,1745683845049,-417.18,0.00019967,2]
[359061058,1745683845059,-400.0,0.00019967,2]
[359061059,1745683845070,-374.90937011,0.00019967,2]
[359061060,1745683845079,-400.0,0.00019967,2]
[359061061,1745683845089,-400.0,0.00019967,2]
[359061062,1745683845101,-400.0,0.00019967,2]
[359061063,1745683845111,-400.0,0.00019967,2]
[359061064,1745683845121,-400.0,0.00019967,2]
[359061065,1745683845131,-400.0,0.00019967,2]
[359061066,1745683845141,-400.0,0.00019967,2]
[359061067,1745683845151,-400.0,0.00019967,2]
[359061068,1745683845161,-516.24,0.00019967,2]
[359061069,1745683845171,-400.0,0.00019967,2]
[359061070,1745683845181,-400.0,0.00019967,2]
[359061071,1745683845191,-179.29675452,0.00019967,2]
[359061072,1745683845201,-500.0,0.00019967,2]
[359061073,1745683845211,-400.0,0.00019967,2]
[359061074,1745683845222,-400.0,0.00019967,2]
[359061075,1745683845232,-400.0,0.00019967,2]
[359061076,1745683845242,-400.0,0.00019967,2]
[359061077,1745683845252,-472.6,0.00019967,2]
[359061078,1745683845262,-400.0,0.00019967,2]
[359061079,1745683845271,-400.0,0.00019967,2]
[359061080,1745683845281,-400.0,0.00019967,2]
[359061081,1745683845290,-400.0,0.00019967,2]
[359061082,1745683845300,-156.30465013,0.00019967,2]
[359061083,1745683845534,-542.25,0.00019967,2]
[359061084,1745683845546,-400.0,0.00019967,2]
[359061085,1745683845559,-786.47,0.00019967,2]
[359061086,1745683845571,-731.52,0.00019967,2]
[359061087,1745683845581,-400.0,0.00019967,2]
[359061088,1745683845592,-156.99553438,0.00019967,2]
[359061089,1745683845602,-467.52,0.00019967,2]
[359061090,1745683845612,-400.0,0.00019967,2]
[359061091,1745683845623,-400.0,0.00019967,2]
[359061092,1745683845633,-610.27,0.00019967,2]
[359061093,1745683845644,-400.0,0.00019967,2]
[359061094,1745683845654,-400.0,0.00019967,2]
[359061095,1745683845664,-400.0,0.00019967,2]
[359061096,1745683845674,-400.0,0.00019967,2]
[359061097,1745683845685,-549.3,0.00019967,2]
[359061098,1745683845697,-400.0,0.00019967,2]
[359061099,1745683845708,-400.0,0.00019967,2]
[359061100,1745683845719,-400.0,0.00019967,2]
[359061101,1745683845730,-400.0,0.00019967,2]
[359061102,1745683845742,-400.0,0.00019967,2]
[359061103,1745683845753,-400.0,0.00019967,2]
[359061104,1745683845765,-192.18826043,0.00019967,2]
[359061105,1745683845777,-400.0,0.00019967,2]
[359061106,1745683845787,-400.0,0.00019967,2]
[359061107,1745683845796,-229.68816259,0.00019967,2]
[359061108,1745683845806,-400.0,0.00019967,2]
[359061109,1745683845817,-844.63,0.00019967,2]
[359061110,1745683845830,-400.0,0.00019967,2]
[359061111,1745683845842,-400.0,0.00019967,2]
[359061112,1745683845853,-1834.14,0.00019967,2]
[359061113,1745683845863,-400.0,0.00019967,2]
[359061114,1745683845874,-400.0,0.00019967,2]
[359061115,1745683845885,-400.0,0.00019967,2]
[359061116,1745683845895,-400.0,0.00019967,2]
[359061117,1745683845906,-400.0,0.00019967,2]
[359061118,1745683845916,-400.0,0.00019967,2]
[359061119,1745683845926,-400.0,0.00019967,2]
[359061120,1745683845937,-424.43,0.00019967,2]
[359061121,1745683845947,-535.93,0.00019967,2]
[359061122,1745683845957,-687.46,0.00019967,2]
[359061123,1745683845968,-400.0,0.00019967,2]
[359061126,1745683845978,-400.0,0.00019967,2]
[359061128,1745683845989,-454.43,0.00019967,2]
[359061129,1745683845999,-400.0,0.00019967,2]
[359061130,1745683846009,-400.0,0.00019967,2]
[359061131,1745683846019,-300.0,0.00019967,2]
[359061132,1745683846029,-423.19,0.00019967,2]
[359061133,1745683846039,-674.11,0.00019967,2]
[359061134,1745683846049,-400.0,0.00019967,2]
[359061135,1745683846059,-484.77,0.00019967,2]
[359061136,1745683846069,-648.3,0.00019967,2]
[359061137,1745683846079,-433.67,0.00019967,2]
[359061138,1745683846089,-400.0,0.00019967,2]
[359061139,1745683846099,-300.0,0.00019967,2]
[359061140,1745683846109,-400.0,0.00019967,2]
[359061141,1745683846120,-400.0,0.00019967,2]
[359061142,1745683846129,-400.0,0.00019967,2]
[359061143,1745683846139,-400.0,0.00019967,2]
[359061144,1745683846149,-400.0,0.00019967,2]
[359061145,1745683846159,-400.0,0.00019967,2]
[359061146,1745683846170,-425.83,0.00019967,2]
[359061147,1745683846179,-538.37,0.00019967,2]
[359061148,1745683846189,-400.0,0.00019967,2]
[359061149,1745683846199,-400.0,0.00019967,2]
[359061150,1745683846212,-485.26,0.00019967,2]